fUST/lending_fUST_20250909
["ID","MTS","AMOUNT","RATE_DAILY","PERIOD"]
[384416076,1757398386343,168.0,0.00013087,2]
[384416077,1757398409815,168.0,0.00013087,2]
[384416080,1757398434929,168.0,0.00013087,2]
[384416081,1757398444205,168.0,0.00013087,2]
[384416083,1757398469757,549.1552618,0.00013084,2]
[384416084,1757398494581,549.1552618,0.00013084,2]
[384416086,1757398517657,549.1552618,0.00013084,2]
[384416087,1757398541033,549.1552618,0.00013084,2]
[384416088,1757398565017,549.1552618,0.00013084,2]
[384416089,1757398587958,549.1552618,0.00013084,2]
[384416090,1757398611044,549.1552618,0.00013084,2]
[384416091,1757398634796,549.1552618,0.00013084,2]
[384416092,1757398650335,549.1552618,0.00013084,2]
[384416093,1757398674876,549.1552618,0.00013084,2]
[384416094,1757398697503,549.1552618,0.00013084,2]
[384416096,1757398721734,549.1552618,0.00013084,2]
[384416097,1757398744365,549.1552618,0.00013084,2]
[384416098,1757398767223,549.1552618,0.00013084,2]
[384416099,1757398790937,549.1552618,0.00013084,2]
[384416100,1757398814565,549.1552618,0.00013084,2]
[384416101,1757398838529,549.1552618,0.00013084,2]
[384416102,1757398847356,549.1552618,0.00013084,2]
[384416103,1757398871423,549.1552618,0.00013084,2]
[384416104,1757398895627,549.1552618,0.00013084,2]
[384416105,1757398918517,549.1552618,0.00013084,2]
[384416106,1757398941813,549.1552618,0.00013084,2]
[384416109,1757398965643,549.1552618,0.00013084,2]
[384416110,1757398988682,549.1552618,0.00013084,2]
[384416130,1757399013474,549.1552618,0.00013084,2]
[384416131,1757399037811,549.1552618,0.00013084,2]
[384416133,1757399062434,549.1552618,0.00013084,2]
[384416136,1757399085459,549.1552618,0.00013084,2]
[384416138,1757399108763,549.1552618,0.00013084,2]
[384416139,1757399112973,-549.1552618,0.00013216,2]
[384416140,1757399113736,-1394.150376,0.0001333,2]
[384416141,1757399113992,-10000.01,0.0001333,2]
[384416142,1757399114031,-10000.01,0.0001333,2]
[384416143,1757399114045,-10000.01,0.0001333,2]
[384416144,1757399114091,-10000.01,0.0001333,2]
[384416145,1757399114105,-10000.01,0.0001333,2]
[384416146,1757399114199,-10000.01,0.0001333,2]
[384416147,1757399114472,-10000.01,0.0001333,2]
[384416148,1757399127300,562.36,0.00012329,2]
[384416149,1757399133974,549.1552618,0.00013084,2]
[384416150,1757399137737,684.47,0.00012329,2]
[384416151,1757399148165,570.39,0.00012329,2]
[384416152,1757399156973,549.1552618,0.00013084,2]
[384416153,1757399158535,475.32,0.00012329,2]
[384416154,1757399166130,157.0,7.9e-07,2]
[384416155,1757399167195,157.0,7.9e-07,2]
[384416156,1757399168264,157.0,7.9e-07,2]
[384416157,1757399169591,157.0,7.9e-07,2]
[384416158,1757399170161,396.1,0.00012329,2]
[384416159,1757399170702,157.0,7.9e-07,2]
[384416160,1757399171991,157.0,7.9e-07,2]
[384416161,1757399180564,330.09,0.00012329,2]
[384416162,1757399181069,549.1552618,0.00013084,2]
[384416163,1757399190978,275.07,0.00012329,2]
[384416164,1757399201472,229.23,0.00012329,2]
[384416165,1757399205462,549.1552618,0.00013084,2]
[384416166,1757399212125,191.02,0.00012329,2]
[384416167,1757399222717,159.19,0.00012329,2]
[384416168,1757399228583,549.1552618,0.00013084,2]
[384416169,1757399233159,795.95,0.00012329,2]
[384416170,1757399252072,549.1552618,0.00013084,2]
[384416171,1757399275622,549.1552618,0.00013084,2]
[384416172,1757399289935,13399.9504837,0.0002879,120]
[384416173,1757399291268,20744.99134106,0.0002879,120]
[384416174,1757399300440,549.1552618,0.00013084,2]
[384416176,1757399309963,33042.88689879,0.0002879,120]
[384416177,1757399310526,12249.60471065,0.0002879,90]
[384416178,1757399317487,549.1552618,0.00013084,2]
[384416199,1757399342346,549.1552618,0.00013084,2]
[384416200,1757399366892,549.1552618,0.00013084,2]
[384416219,1757399389993,549.1552618,0.00013084,2]
[384416228,1757399413863,549.1552618,0.00013084,2]
[384416229,1757399426519,1466.2933007,0.00012544,2]
[384416253,1757399436561,-549.1552618,0.00013216,2]
[384416255,1757399436571,-10568.85021527,0.0001333,2]
[384416257,1757399436582,-56693.73795693,0.0001333,2]
[384416259,1757399436592,-831.90628586,0.00013333,2]
[384416407,1757399437927,-7250.06189343,0.00013333,2]
[384416409,1757399437939,-390.9790112,0.00013333,2]
[384416413,1757399438001,549.1552618,0.00013084,2]
[384416414,1757399438013,-47858.49720805,0.00013333,2]
[384416415,1757399438024,-7711.13700442,0.00013333,2]
[384416416,1757399438035,-2531.58424737,0.00013333,2]
[384416572,1757399440283,-519.48394604,0.00013333,2]
[384416634,1757399443022,-55851.129146,0.00013333,2]
[384416635,1757399443032,-549.1552618,0.0001335,2]
[384416636,1757399443042,-168.0,0.00013352,2]
[384416637,1757399443051,-168.0,0.00013441,2]
[384416638,1757399443060,-168.0,0.00013497,2]
[384416640,1757399443070,-250.000001,0.000135,2]
[384416642,1757399443079,-168.0,0.00013507,2]
[384416644,1757399443089,-1604.17189853,0.00013547,2]
[384416647,1757399443098,-182.56537939,0.00013584,2]
[384416650,1757399443108,-1200.0,0.00013587,2]
[384416653,1757399443118,-300.0,0.00013588,2]
[384416656,1757399443128,-300.0,0.00013588,2]
[384416659,1757399443137,-300.0,0.00013588,2]
[384416662,1757399443147,-300.0,0.00013588,2]
[384416665,1757399443156,-300.0,0.00013588,2]
[384416667,1757399443165,-16750.77367376,0.00013589,2]
[384416668,1757399443175,-1200.0,0.0001359,2]
[384416669,1757399443185,-11217.09414324,0.00013598,2]
[384416670,1757399443194,-926.72544497,0.00013598,2]
[384416671,1757399443203,-8261.47689935,0.00013598,2]
[384416672,1757399443213,-168.0,0.00013622,2]
[384416673,1757399443222,-168.0,0.00013629,2]
[384416674,1757399443232,-203.28455737,0.00013647,2]
[384416675,1757399443241,-846.80158213,0.00013647,2]
[384416676,1757399443250,-233.05759179,0.00013647,2]
[384416677,1757399443260,-417.15472785,0.00013647,2]
[384416678,1757399443269,-160.0,0.00013647,2]
[384416679,1757399443279,-160.0,0.00013647,2]
[384416680,1757399443288,-217.65034598,0.00013647,2]
[384416681,1757399443297,-530.79566296,0.00013647,2]
[384416682,1757399443306,-926.72544494,0.00013667,2]
[384416683,1757399443316,-500.0,0.00013671,2]
[384416684,1757399443325,-500.0,0.00013671,2]
[384416685,1757399443334,-500.0,0.00013671,2]
[384416686,1757399443344,-500.0,0.00013671,2]
[384416687,1757399443353,-500.0,0.00013671,2]
[384416688,1757399443362,-265.46555606,0.00013671,2]
[384416689,1757399443371,-500.0,0.00013671,2]
[384416690,1757399443383,-500.0,0.00013671,2]
[384416691,1757399443392,-500.0,0.00013671,2]
[384416692,1757399443401,-500.0,0.00013671,2]
[384416693,1757399443411,-229.36136928,0.00013671,2]
[384416694,1757399443420,-500.0,0.00013671,2]
[384416695,1757399443429,-500.0,0.00013671,2]
[384416696,1757399443438,-500.0,0.00013671,2]
[384416697,1757399443448,-500.0,0.00013671,2]
[384416698,1757399443458,-500.0,0.00013671,2]
[384416699,1757399443467,-500.0,0.00013671,2]
[384416700,1757399443476,-500.0,0.00013671,2]
[384416701,1757399443486,-500.0,0.00013671,2]
[384416702,1757399443495,-500.0,0.00013671,2]
[384416703,1757399443505,-500.0,0.00013671,2]
[384416704,1757399443515,-500.0,0.00013671,2]
[384416705,1757399443524,-500.0,0.00013671,2]
[384416706,1757399443534,-500.0,0.00013671,2]
[384416707,1757399443546,-500.0,0.00013671,2]
[384416708,1757399443556,-500.0,0.00013671,2]
[384416709,1757399443566,-500.0,0.00013671,2]
[384416710,1757399443576,-500.0,0.00013671,2]
[384416711,1757399443588,-500.0,0.00013671,2]
[384416712,1757399443597,-500.0,0.00013671,2]
[384416713,1757399443606,-500.0,0.00013671,2]
[384416714,1757399443616,-245.97430957,0.00013671,2]
[384416715,1757399443626,-168.0,0.00013671,2]
[384416716,1757399443635,-500.39295304,0.00013673,2]
[384416717,1757399443645,-500.0,0.00013673,2]
[384416718,1757399443655,-500.0,0.00013673,2]
[384416719,1757399443664,-500.0,0.00013673,2]
[384416720,1757399443674,-433.57024684,0.00013673,2]
[384416721,1757399443683,-488.81612663,0.00013673,2]
[384416722,1757399443693,-500.0,0.00013673,2]
[384416723,1757399443703,-224.85602054,0.00013673,2]
[384416724,1757399443712,-500.0,0.00013673,2]
[384416725,1757399443722,-500.0,0.00013673,2]
[384416726,1757399443731,-164.38815301,0.00013673,2]
[384416727,1757399443741,-500.0,0.00013673,2]
[384416728,1757399443751,-500.0,0.00013673,2]
[384416729,1757399443760,-500.0,0.00013673,2]
[384416730,1757399443769,-500.95718781,0.00013673,2]
[384416731,1757399443778,-500.0,0.00013673,2]
[384416732,1757399443787,-500.6254264,0.00013673,2]
[384416733,1757399443797,-428.33388901,0.00013673,2]
[384416734,1757399443806,-500.0,0.00013673,2]
[384416735,1757399443816,-500.38205363,0.00013673,2]
[384416736,1757399443825,-501.23142109,0.00013673,2]
[384416737,1757399443834,-500.0,0.00013673,2]
[384416738,1757399443844,-500.0,0.00013673,2]
[384416739,1757399443853,-335.7134986,0.00013673,2]
[384416740,1757399443863,-500.0,0.00013673,2]
[384416741,1757399443872,-500.0,0.00013673,2]
[384416742,1757399443881,-976.0,0.00013678,2]
[384416743,1757399443891,-2154.0,0.00013678,2]
[384416744,1757399443900,-634.0,0.00013678,2]
[384416745,1757399443910,-409.0,0.00013678,2]
[384416746,1757399443920,-429.6,0.00013678,2]
[384416747,1757399443929,-151.0,0.00013682,2]
[384416748,1757399443938,-151.0,0.00013682,2]
[384416749,1757399443947,-151.0,0.00013682,2]
[384416750,1757399443956,-151.0,0.00013682,2]
[384416751,1757399443966,-151.0,0.00013682,2]
[384416752,1757399443975,-151.0,0.00013682,2]
[384416753,1757399443984,-161.675704,0.00013683,2]
[384416754,1757399443994,-151.0,0.00013683,2]
[384416755,1757399444003,-151.985322,0.00013683,2]
[384416756,1757399444013,-151.0,0.00013683,2]
[384416757,1757399444022,-151.0,0.00013683,2]
[384416758,1757399444032,-151.0,0.00013683,2]
[384416759,1757399444042,-153.16402,0.00013683,2]
[384416760,1757399444051,-151.0,0.00013683,2]
[384416761,1757399444060,-544.151,0.00013684,2]
[384416762,1757399444068,-151.932529,0.00013684,2]
[384416763,1757399444079,-151.0,0.00013696,2]
[384416764,1757399444088,-151.0,0.00013696,2]
[384416765,1757399444097,-151.0,0.00013696,2]
[384416766,1757399444106,-151.0,0.00013696,2]
[384416767,1757399444115,-151.0,0.00013696,2]
[384416768,1757399444125,-151.0,0.00013696,2]
[384416769,1757399444134,-151.0,0.00013696,2]
[384416770,1757399444144,-151.0,0.00013696,2]
[384416771,1757399444153,-242.720414,0.00013696,2]
[384416772,1757399444162,-151.0,0.00013696,2]
[384416773,1757399444171,-151.0,0.00013696,2]
[384416774,1757399444180,-151.0,0.00013696,2]
[384416775,1757399444190,-154.009083,0.00013696,2]
[384416776,1757399444199,-151.0,0.00013696,2]
[384416777,1757399444208,-151.0,0.00013696,2]
[384416778,1757399444217,-151.0,0.00013696,2]
[384416779,1757399444227,-151.0,0.00013696,2]
[384416780,1757399444236,-151.0,0.00013696,2]
[384416781,1757399444246,-151.0,0.00013696,2]
[384416782,1757399444255,-151.0,0.00013696,2]
[384416783,1757399444265,-223.634112,0.00013696,2]
[384416784,1757399444275,-223.634112,0.00013696,2]
[384416785,1757399444284,-151.373354,0.00013696,2]
[384416786,1757399444293,-223.634112,0.00013696,2]
[384416787,1757399444302,-223.634112,0.00013696,2]
[384416788,1757399444312,-151.0,0.00013696,2]
[384416789,1757399444321,-151.0,0.00013696,2]
[384416790,1757399444331,-151.0,0.00013696,2]
[384416791,1757399444340,-151.745553,0.00013696,2]
[384416792,1757399444350,-151.0,0.00013696,2]
[384416793,1757399444359,-151.0,0.00013696,2]
[384416794,1757399444369,-151.0,0.00013696,2]
[384416795,1757399444380,-316.178144,0.00013696,2]
[384416796,1757399444390,-316.178144,0.00013696,2]
[384416797,1757399444399,-316.178144,0.00013696,2]
[384416798,1757399444409,-316.178144,0.00013696,2]
[384416799,1757399444418,-151.0,0.00013696,2]
[384416800,1757399444428,-151.0,0.00013696,2]
[384416801,1757399444438,-151.0,0.00013696,2]
[384416802,1757399444447,-151.0,0.00013696,2]
[384416803,1757399444456,-153.887857,0.00013696,2]
[384416804,1757399444466,-153.887857,0.00013696,2]
[384416805,1757399444475,-153.887857,0.00013696,2]
[384416806,1757399444484,-153.887857,0.00013696,2]
[384416807,1757399444494,-241.548177,0.00013696,2]
[384416808,1757399444503,-241.548177,0.00013696,2]
[384416809,1757399444513,-241.548177,0.00013696,2]
[384416810,1757399444523,-241.548177,0.00013696,2]
[384416811,1757399444533,-245.407449,0.00013696,2]
[384416812,1757399444544,-245.407449,0.00013696,2]
[384416813,1757399444557,-245.407449,0.00013696,2]
[384416814,1757399444568,-245.407449,0.00013696,2]
[384416815,1757399444577,-301.631984,0.00013696,2]
[384416816,1757399444586,-151.0,0.00013696,2]
[384416817,1757399444596,-151.0,0.00013696,2]
[384416818,1757399444605,-151.0,0.00013696,2]
[384416819,1757399444615,-176.96163224,0.00013697,2]
[384416820,1757399444625,-169.783,0.00013697,2]
[384416821,1757399444634,-481.02348525,0.00013698,2]
[384416822,1757399444643,-480.0,0.00013698,2]
[384416823,1757399444652,-480.0,0.00013698,2]
[384416824,1757399444663,-480.0,0.00013698,2]
[384416825,1757399444673,-480.0,0.00013698,2]
[384416826,1757399444682,-486.43758985,0.00013698,2]
[384416827,1757399444691,-480.0,0.00013698,2]
[384416828,1757399444701,-480.0,0.00013698,2]
[384416829,1757399444711,-480.0,0.00013698,2]
[384416830,1757399444721,-492.91313984,0.00013698,2]
[384416831,1757399444730,-481.60401546,0.00013698,2]
[384416832,1757399444740,-279.44012333,0.00013698,2]
[384416833,1757399444749,-480.0,0.00013698,2]
[384416834,1757399444759,-480.09772791,0.00013698,2]
[384416835,1757399444769,-480.0,0.00013698,2]
[384416836,1757399444779,-480.0,0.00013698,2]
[384416837,1757399444788,-480.0,0.00013698,2]
[384416838,1757399444797,-480.0,0.00013698,2]
[384416839,1757399444807,-480.70159995,0.00013698,2]
[384416840,1757399444816,-480.0,0.00013698,2]
[384416841,1757399444825,-480.0,0.00013698,2]
[384416842,1757399444834,-480.0,0.00013698,2]
[384416843,1757399444844,-480.0,0.00013698,2]
[384416844,1757399444854,-480.0,0.00013698,2]
[384416845,1757399444863,-488.00574305,0.00013698,2]
[384416846,1757399444872,-484.54655529,0.00013698,2]
[384416847,1757399444881,-480.0,0.00013698,2]
[384416848,1757399444891,-480.0,0.00013698,2]
[384416849,1757399444900,-483.92196546,0.00013698,2]
[384416850,1757399444910,-480.0,0.00013698,2]
[384416851,1757399444919,-480.0,0.00013698,2]
[384416852,1757399444928,-480.0,0.00013698,2]
[384416853,1757399444938,-480.0,0.00013698,2]
[384416854,1757399444947,-480.0,0.00013698,2]
[384416855,1757399444957,-480.0,0.00013698,2]
[384416856,1757399444966,-480.0,0.00013698,2]
[384416857,1757399444976,-225.30986041,0.00013698,2]
[384416858,1757399444985,-480.0,0.00013698,2]
[384416859,1757399444995,-482.0525713,0.00013698,2]
[384416860,1757399445004,-483.28359703,0.00013698,2]
[384416861,1757399445014,-480.0,0.00013698,2]
[384416862,1757399445023,-480.0,0.00013698,2]
[384416863,1757399445032,-480.0,0.00013698,2]
[384416864,1757399445041,-480.0,0.00013698,2]
[384416865,1757399445051,-480.0,0.00013698,2]
[384416866,1757399445060,-480.0,0.00013698,2]
[384416867,1757399445069,-480.0,0.00013698,2]
[384416868,1757399445079,-480.0,0.00013698,2]
[384416869,1757399445088,-480.0,0.00013698,2]
[384416870,1757399445097,-222.80942024,0.00013698,2]
[384416876,1757399445978,-257.19057976,0.00013698,2]
[384416877,1757399445988,-480.0,0.00013698,2]
[384416878,1757399445998,-480.0,0.00013698,2]
[384416880,1757399446007,-87.11543507,0.00013698,2]
[384416883,1757399446059,-392.88456493,0.00013698,2]
[384416884,1757399446222,-480.0,0.00013698,2]
[384416885,1757399446233,-480.0,0.00013698,2]
[384416886,1757399446243,-480.0,0.00013698,2]
[384416887,1757399446253,-481.41056234,0.00013698,2]
[384416888,1757399446262,-480.0,0.00013698,2]
[384416889,1757399446272,-480.0,0.00013698,2]
[384416890,1757399446282,-480.0,0.00013698,2]
[384416891,1757399446292,-480.0,0.00013698,2]
[384416892,1757399446301,-480.0,0.00013698,2]
[384416893,1757399446311,-480.0,0.00013698,2]
[384416894,1757399446320,-480.0,0.00013698,2]
[384416895,1757399446330,-481.57897008,0.00013698,2]
[384416896,1757399446339,-464.69177979,0.00013698,2]
[384416897,1757399446348,-481.36889813,0.00013698,2]
[384416898,1757399446357,-480.0,0.00013698,2]
[384416899,1757399446367,-480.0,0.00013698,2]
[384416900,1757399446377,-480.0,0.00013698,2]
[384416901,1757399446386,-480.0,0.00013698,2]
[384416902,1757399446395,-480.0,0.00013698,2]
[384416903,1757399446404,-480.0,0.00013698,2]
[384416904,1757399446413,-136.28567128,0.00013698,2]
[384416905,1757399446426,-343.71432872,0.00013698,2]
[384416906,1757399446435,-480.0,0.00013698,2]
[384416907,1757399446444,-151.0,0.00013698,2]
[384416908,1757399446453,-140.99988969,0.00013698,2]
[384416909,1757399447707,390.91,0.00012329,2]
[384416910,1757399458106,245.21,0.00012329,2]
[384416913,1757399622980,53599.2275622,0.00012669,2]
[384416914,1757399665072,2702.53460329,0.00013158,2]
[384416916,1757399688606,2702.53460329,0.00013158,2]
[384416917,1757399711205,2702.53460329,0.00013158,2]
[384416918,1757399734374,2702.53460329,0.00013158,2]
[384416919,1757399757705,2702.53460329,0.00013158,2]
[384416921,1757399780729,2702.53460329,0.00013158,2]
[384416922,1757399789289,10000.0,0.00027397,120]
[384416923,1757399803979,2702.53460329,0.00013158,2]
[384416925,1757399817931,7453.0,0.00025,30]
[384416926,1757399827779,2702.53460329,0.00013158,2]
[384416935,1757399952635,-300.0,0.00013325,2]
[384416936,1757399952659,-300.0,0.0001346,2]
[384416937,1757399952681,-658.28124222,0.00013567,2]
[384416938,1757399952703,-300.0,0.00013597,2]
[384416939,1757399952724,-300.0,0.00013597,2]
[384416940,1757399952747,-1200.0,0.00013597,2]
[384416941,1757399952769,-300.0,0.00013597,2]
[384416942,1757399952790,-556.03526698,0.00013598,2]
[384416943,1757399952812,-7478.06276216,0.00013598,2]
[384416944,1757399952834,-160.0,0.00013636,2]
[384416945,1757399952858,-160.0,0.00013636,2]
[384416946,1757399952881,-217.65034598,0.00013636,2]
[384416947,1757399952904,-530.79566296,0.00013636,2]
[384416948,1757399952927,-203.28455737,0.00013636,2]
[384416949,1757399952949,-846.80158213,0.00013636,2]
[384416950,1757399952971,-233.05759179,0.00013636,2]
[384416952,1757399952992,-417.15472785,0.00013636,2]
[384416953,1757399953014,-22736.15181738,0.00013636,2]
[384416954,1757399953036,-556.03526696,0.00013667,2]
[384416955,1757399953058,-546.68917622,0.00013673,2]
[384416968,1757400172795,2402.53460329,0.00013134,2]
[384416969,1757400196701,756.50951634,0.00013134,2]
[384416970,1757400369693,2402.53460329,0.00013134,2]
[384416971,1757400387792,168.0,0.00012983,2]
[384416972,1757400394455,168.0,0.00012954,2]
[384416973,1757400438458,149218.30842219,0.00013,2]
[384416985,1757400595547,168.0,0.0001308,2]
[384416986,1757400618801,168.0,0.00013162,2]
[384417048,1757400632306,-168.0,0.00013295,2]
[384417049,1757400632317,-168.0,0.00013345,2]
[384417050,1757400632326,-575.99608696,0.00013497,2]
[384417051,1757400632335,-168.0,0.0001354,2]
[384417052,1757400632345,-168.0,0.00013556,2]
[384417053,1757400632355,-182.56537939,0.0001359,2]
[384417054,1757400632364,-1200.0,0.00013595,2]
[384417055,1757400632374,-1200.0,0.00013596,2]
[384417056,1757400632383,-300.0,0.00013596,2]
[384417057,1757400632392,-300.0,0.00013596,2]
[384417058,1757400632402,-300.0,0.00013596,2]
[384417059,1757400632412,-300.0,0.00013596,2]
[384417060,1757400632421,-16750.77367376,0.00013597,2]
[384417061,1757400632431,-500.0,0.00013597,2]
[384417062,1757400632441,-500.0,0.00013597,2]
[384417063,1757400632451,-500.0,0.00013597,2]
[384417064,1757400632461,-500.0,0.00013597,2]
[384417065,1757400632470,-229.36136928,0.00013597,2]
[384417066,1757400632480,-265.46555606,0.00013597,2]
[384417067,1757400632489,-500.0,0.00013597,2]
[384417068,1757400632499,-500.0,0.00013597,2]
[384417069,1757400632508,-500.0,0.00013597,2]
[384417070,1757400632518,-500.0,0.00013597,2]
[384417071,1757400632528,-500.0,0.00013597,2]
[384417072,1757400632537,-500.0,0.00013597,2]
[384417073,1757400632548,-329.91550115,0.00013597,2]
[384417245,1757400638271,-170.08449885,0.00013597,2]
[384417246,1757400638281,-382.92950115,0.00013597,2]
[384417316,1757400641779,-117.07049885,0.00013597,2]
[384417317,1757400641789,-500.0,0.00013597,2]
[384417318,1757400641799,-500.0,0.00013597,2]
[384417319,1757400641808,-500.0,0.00013597,2]
[384417320,1757400641817,-500.0,0.00013597,2]
[384417321,1757400641827,-500.0,0.00013597,2]
[384417322,1757400641837,-500.0,0.00013597,2]
[384417323,1757400641846,-500.0,0.00013597,2]
[384417324,1757400641856,-500.0,0.00013597,2]
[384417325,1757400641866,-500.0,0.00013597,2]
[384417326,1757400641876,-500.0,0.00013597,2]
[384417327,1757400641886,-500.0,0.00013597,2]
[384417328,1757400641895,-500.0,0.00013597,2]
[384417329,1757400641904,-500.0,0.00013597,2]
[384417330,1757400641913,-500.0,0.00013597,2]
[384417331,1757400641922,-500.0,0.00013597,2]
[384417332,1757400641932,-500.0,0.00013597,2]
[384417333,1757400641941,-500.0,0.00013597,2]
[384417334,1757400641951,-500.0,0.00013597,2]
[384417335,1757400641961,-500.0,0.00013597,2]
[384417336,1757400641971,-500.0,0.00013597,2]
[384417337,1757400641981,-348.56110624,0.00013597,2]
[384417338,1757400641998,-500.0,0.00013597,2]
[384417339,1757400642008,-500.0,0.00013597,2]
[384417340,1757400642017,-500.0,0.00013597,2]
[384417341,1757400642027,-500.0,0.00013597,2]
[384417342,1757400642037,-250.0,0.00013597,2]
[384417343,1757400642046,-704.31133819,0.00013598,2]
[384417344,1757400642056,-8724.40655584,0.00013598,2]
[384417345,1757400642066,-34534.0,0.00013598,2]
[384417346,1757400642076,-417.15472785,0.00013635,2]
[384417347,1757400642086,-160.0,0.00013635,2]
[384417348,1757400642096,-160.0,0.00013635,2]
[384417349,1757400642106,-217.65034598,0.00013635,2]
[384417350,1757400642115,-530.79566296,0.00013635,2]
[384417351,1757400642126,-203.28455737,0.00013635,2]
[384417352,1757400642135,-846.80158213,0.00013635,2]
[384417353,1757400642145,-233.05759179,0.00013635,2]
[384417354,1757400642154,-3735.840011,0.00013641,2]
[384417355,1757400642163,-704.31133815,0.00013666,2]
[384417356,1757400642173,-489.28022263,0.00013673,2]
[384417357,1757400642182,-402.00279279,0.00013673,2]
[384417358,1757400642196,-501.26335615,0.00013673,2]
[384417359,1757400642205,-500.0,0.00013673,2]
[384417360,1757400642214,-500.0,0.00013673,2]
[384417361,1757400642224,-164.38815301,0.00013673,2]
[384417362,1757400642234,-500.77986851,0.00013673,2]
[384417363,1757400642243,-500.39295304,0.00013673,2]
[384417364,1757400642253,-500.0,0.00013673,2]
[384417365,1757400642262,-500.0,0.00013673,2]
[384417366,1757400642272,-500.0,0.00013673,2]
[384417368,1757400642283,-500.0,0.00013673,2]
[384417369,1757400642292,-435.321,0.00013674,2]
[384417370,1757400642302,-976.0,0.00013678,2]
[384417371,1757400642311,-2154.0,0.00013678,2]
[384417372,1757400642321,-634.0,0.00013678,2]
[384417373,1757400642330,-287.652443,0.00013698,2]
[384417374,1757400642339,-480.0,0.00013698,2]
[384417375,1757400642349,-481.84034458,0.00013698,2]
[384417376,1757400642359,-480.0,0.00013698,2]
[384417377,1757400642368,-480.0,0.00013698,2]
[384417378,1757400642378,-494.74118685,0.00013698,2]
[384417379,1757400642387,-374.89724682,0.00013698,2]
[384417380,1757400642396,-180.65692077,0.00013698,2]
[384417381,1757400642406,-480.0,0.00013698,2]
[384417382,1757400642415,-480.0,0.00013698,2]
[384417383,1757400642425,-488.6562618,0.00013698,2]
[384417384,1757400642434,-480.0,0.00013698,2]
[384417385,1757400642443,-608.90568883,0.00013698,2]
[384417386,1757400642453,-151.0,0.00013698,2]
[384417387,1757400642463,-154.967792,0.00013698,2]
[384417388,1757400642472,-480.0,0.00013698,2]
[384417389,1757400642481,-480.0,0.00013698,2]
[384417390,1757400642491,-480.38440543,0.00013698,2]
[384417391,1757400642500,-480.0,0.00013698,2]
[384417392,1757400642510,-480.0,0.00013698,2]
[384417393,1757400642519,-480.0,0.00013698,2]
[384417394,1757400642529,-151.0,0.00013698,2]
[384417395,1757400642538,-151.0,0.00013698,2]
[384417396,1757400642548,-260.091169,0.00013698,2]
[384417397,1757400642557,-483.60951406,0.00013698,2]
[384417398,1757400642577,-151.0,0.00013698,2]
[384417399,1757400642586,-151.0,0.00013698,2]
[384417401,1757400642595,-151.0,0.00013698,2]
[384417402,1757400642604,-152.368902,0.00013698,2]
[384417404,1757400642615,-480.0,0.00013698,2]
[384417405,1757400642625,-487.01666085,0.00013698,2]
[384417406,1757400642635,-480.0,0.00013698,2]
[384417407,1757400642644,-480.0,0.00013698,2]
[384417408,1757400642653,-480.0,0.00013698,2]
[384417409,1757400642662,-480.0,0.00013698,2]
[384417410,1757400642672,-151.0,0.00013698,2]
[384417411,1757400642681,-151.0,0.00013698,2]
[384417412,1757400642690,-151.0,0.00013698,2]